bitfinex/quotes_SOLUSD_20250506
["timestamp","ask_amount","ask_price","bid_price","bid_amount"]
[1746534620246,89.61220507,143.02,142.97,1.5721]
[1746534620456,15.12017599,143.01,142.97,1.5721]
[1746534620840,74.49202908,143.02,142.99,15.12017599]
[1746534621544,89.61220507,143.02,142.98,15.12017599]
[1746534621736,15.12017599,143.0,142.96,15.12017599]
[1746534622060,6.99398517,142.98,142.95,21.16467599]
[1746534622736,6.99398517,142.98,142.95,6.0445]
[1746534623039,6.99398517,142.98,142.96,15.12017599]
[1746534623858,6.99398517,142.98,142.95,6.0445]
[1746534624251,6.99398517,142.98,142.96,15.12017599]
[1746534625145,74.4937142,142.99,142.97,15.12017599]
[1746534627068,67.5,142.99,142.98,15.12017599]
[1746534627470,74.49289765,143.01,142.98,15.12017599]
[1746534627641,67.5,143.01,143.0,15.12017599]
[1746534627946,74.49169468,143.03,143.0,15.12017599]
[1746534628148,74.49169468,143.03,143.01,15.12017599]
[1746534628639,74.49169468,143.03,143.0,15.12017599]
[1746534630999,74.49169468,143.03,142.99,15.12017599]
[1746534631203,15.12017599,143.01,142.97,15.12017599]
[1746534631410,15.12017599,143.01,142.98,15.12017599]
[1746534631576,82.62017599,143.02,142.95,32.0445]
[1746534631905,15.12017599,143.0,142.96,15.12017599]
[1746534632070,22.11269399,143.01,142.96,15.12017599]
[1746534632270,22.11269399,143.01,142.97,15.12017599]
[1746534632892,22.11269399,143.01,142.98,15.12017599]
[1746534632893,6.992518,143.01,142.98,15.12017599]
[1746534636689,6.992518,143.01,142.99,15.12017599]
[1746534636889,6.992518,143.01,143.0,15.12017599]
[1746534638492,67.5,143.02,143.0,15.12017599]
[1746534638682,74.49227698,143.02,143.01,15.12017599]
[1746534639002,74.49227698,143.02,143.0,15.12017599]
[1746534639406,74.49227698,143.02,143.01,15.12017599]
[1746534639610,67.5,143.04,143.01,15.12017599]
[1746534639806,67.5,143.04,143.02,15.12017599]
[1746534640032,74.49027559,143.06,143.03,15.12017599]
[1746534640307,74.49027559,143.06,143.04,15.12017599]
[1746534640489,74.49027559,143.06,143.0,14.96329352]
[1746534640687,74.49027559,143.06,143.04,15.12017599]
[1746534641494,74.49027559,143.06,143.0,7.9707]
[1746534641701,74.49027559,143.06,143.03,15.12017599]
[1746534642104,15.12017599,143.05,143.01,15.12017599]
[1746534642416,15.12017599,143.04,143.0,23.09087599]
[1746534643113,67.5,143.05,143.01,15.12017599]
[1746534643114,82.62017599,143.05,143.01,15.12017599]
[1746534643913,6.99105145,143.04,143.01,15.12017599]
[1746534644326,6.99105145,143.04,143.02,15.12017599]
[1746534646119,6.99105145,143.04,143.01,15.12017599]
[1746534648821,6.99105145,143.04,143.0,7.9707]
[1746534648822,6.99105145,143.04,143.0,21.47397599]
[1746534649201,6.99105145,143.04,143.01,15.12017599]
[1746534650812,74.49079318,143.05,143.03,15.12017599]
[1746534651009,74.49056274,143.05,143.04,15.12017599]
[1746534651213,74.49056274,143.05,143.02,15.12017599]
[1746534653422,15.12017599,143.04,143.0,6.3538]
[1746534653600,15.12017599,143.03,142.99,15.12017599]
[1746534654413,67.5,143.04,142.99,15.12017599]
[1746534654606,82.62017599,143.04,142.99,15.12017599]
[1746534654814,67.5,143.04,143.02,15.12017599]
[1746534655118,74.49148461,143.04,143.02,15.12017599]
[1746534655819,74.49148461,143.04,143.01,15.12017599]
[1746534658410,74.49148461,143.04,143.02,15.12017599]
[1746534659231,67.5,143.04,143.03,15.12017599]
[1746534660940,67.5,143.08,143.03,15.12017599]
[1746534661145,67.5,143.08,143.06,15.12017599]
[1746534661725,74.489097,143.08,143.07,15.12017599]
[1746534661941,74.489097,143.08,143.06,15.12017599]
[1746534665435,74.489097,143.08,143.03,6.99142792]
[1746534665622,74.489097,143.08,143.06,15.12017599]
[1746534672050,6.989097,143.08,143.07,15.12017599]
[1746534673246,6.98860856,143.09,143.07,15.12017599]
[1746534673933,6.98860856,143.09,143.06,15.12017599]
[1746534674450,22.10878455,143.09,143.05,15.12017599]
[1746534674947,89.60878455,143.09,143.05,15.12017599]
[1746534675455,15.12017599,143.08,143.02,8.1567]
[1746534675637,82.62017599,143.08,143.04,15.12017599]
[1746534676446,6.98958551,143.07,143.04,15.12017599]
[1746534676647,6.98958551,143.07,143.05,15.12017599]
[1746534676955,6.98958551,143.07,143.06,15.12017599]
[1746534677129,6.98958551,143.07,143.02,15.14871839]
[1746534677330,6.98958551,143.07,143.06,15.12017599]
[1746534677548,6.98958551,143.07,143.02,15.14871839]
[1746534677745,6.98958551,143.07,143.06,15.12017599]
[1746534679646,67.5,143.08,143.06,15.12017599]
[1746534679853,67.5,143.08,143.07,15.12017599]
[1746534680743,74.489097,143.08,143.03,6.9914118]
[1746534680949,6.989097,143.08,143.07,15.12017599]
[1746534682554,6.98860856,143.09,143.07,15.12017599]
[1746534692460,67.5,143.1,143.08,15.12017599]
[1746534692853,74.48812019,143.1,143.07,16.75997599]
[1746534695659,89.60829618,143.1,143.06,21.43667599]
[1746534697947,107.07859666,143.1,143.05,29.58781102]
[1746534698261,107.07859666,143.1,143.05,44.70798701]
[1746534698464,107.07859666,143.1,143.06,15.12017599]
[1746534698855,67.5,143.09,143.06,15.12017599]
[1746534700078,6.989097,143.08,143.06,15.12017599]
[1746534701461,6.989097,143.08,143.05,3.58781102]
[1746534701663,15.12017599,143.06,143.02,21.39107599]
[1746534701990,15.12017599,143.05,143.02,3.49530374]
[1746534702157,15.12017599,143.03,142.99,6.0303]
[1746534702463,15.12017599,143.02,142.98,15.12017599]
[1746534703246,15.12017599,143.03,142.99,15.12017599]
[1746534703450,15.12017599,143.03,143.0,15.12017599]
[1746534703648,82.62017599,143.05,143.01,15.12017599]
[1746534704274,22.11141536,143.04,143.0,15.12017599]
[1746534704479,22.11141536,143.04,142.97,26.07742569]
[1746534704662,22.11141536,143.04,143.0,15.12017599]
[1746534707280,22.11141536,143.04,142.97,26.07733341]
[1746534707482,22.11141536,143.04,143.0,15.12017599]
[1746534711069,15.12017599,143.03,142.97,19.08309481]
[1746534711379,15.12017599,143.03,142.99,15.12017599]
[1746534711584,15.12017599,143.02,142.98,15.12017599]
[1746534712268,15.12017599,143.03,142.99,15.12017599]
[1746534712653,15.12017599,143.02,142.98,15.12017599]
[1746534712854,6.992518,143.01,142.98,15.12017599]
[1746534713680,6.992518,143.01,142.97,19.08309481]
[1746534713983,6.992518,143.01,142.98,15.12017599]
[1746534716086,6.992518,143.01,142.98,15.12017599]
[1746534717471,107.093989,143.01,142.97,17.42449481]
[1746534717783,107.093989,143.01,142.97,3.44449481]
[1746534717784,82.62017599,143.0,142.97,3.44449481]
[1746534718079,15.12017599,142.99,142.94,6.0303]
[1746534718268,82.62017599,142.98,142.94,21.15047599]
[1746534718473,15.12017599,142.97,142.94,3.43520737]
[1746534718668,82.62017599,142.96,142.92,29.12017599]
[1746534718888,82.62017599,142.95,142.9,6.5744]
[1746534719092,67.5,142.95,142.92,15.12017599]
[1746534719580,74.49575643,142.95,142.92,15.12017599]
[1746534719879,67.5,142.95,142.92,15.12017599]
[1746534720083,67.5,142.95,142.94,15.12017599]
[1746534720583,6.99413634,142.98,142.94,15.12017599]
[1746534720887,6.99413634,142.98,142.95,15.12017599]
[1746534721088,74.49413634,142.98,142.95,15.12017599]
[1746534722178,15.12017599,142.97,142.91,6.99724029]
[1746534722375,15.12017599,142.96,142.9,36.06107194]
[1746534722686,15.12017599,142.95,142.9,51.18124793]
[1746534722869,82.62017599,142.94,142.9,3.48667194]
[1746534723185,82.62017599,142.93,142.89,15.12017599]
[1746534723765,89.61709734,142.92,142.88,15.12017599]
[1746534724795,74.49692135,142.92,142.89,15.12017599]
[1746534725106,67.5,142.92,142.9,15.12017599]
[1746534725392,67.5,142.92,142.87,31.09206076]
[1746534725577,67.5,142.92,142.9,15.12017599]
[1746534725769,74.49724197,142.92,142.87,31.09206076]
[1746534725965,89.61741796,142.92,142.87,24.09269384]
[1746534726171,89.61741796,142.92,142.88,15.12017599]
[1746534727793,74.49724197,142.92,142.89,15.12017599]
[1746534728299,89.61741796,142.92,142.88,15.12017599]
[1746534728593,15.12017599,142.91,142.87,25.21286983]
[1746534728798,82.62017599,142.9,142.86,1.5107]
[1746534729000,82.62017599,142.9,142.85,15.12017599]
[1746534729197,82.62017599,142.89,142.85,15.12017599]
[1746534729496,82.62017599,142.88,142.84,15.12017599]
[1746534729708,67.5,142.87,142.84,15.12017599]
[1746534729883,6.99986,142.86,142.83,25.23650379]
[1746534730695,6.99986,142.86,142.84,15.12017599]
[1746534730901,74.49956189,142.87,142.84,15.12017599]
[1746534732704,67.5,142.86,142.84,15.12017599]
[1746534733989,67.5,142.86,142.85,15.12017599]
[1746534734500,74.49987335,142.86,142.84,15.12017599]
[1746534737007,67.5,142.86,142.85,15.12017599]
[1746534737993,74.49986,142.86,142.85,15.12017599]
[1746534739188,74.49986,142.86,142.84,15.12017599]
[1746534741085,67.5,142.85,142.83,21.73257599]
[1746534741692,67.5,142.84,142.82,1.5545]
[1746534741991,67.5,142.84,142.82,15.12017599]
[1746534742989,74.50099285,142.84,142.82,15.12017599]
[1746534743403,74.50099285,142.84,142.8,6.2996]
[1746534743691,74.50099285,142.84,142.82,15.12017599]
[1746534748499,74.50099285,142.84,142.8,6.2996]
[1746534748698,15.12017599,142.83,142.8,6.2996]
[1746534749610,7.00182047,142.82,142.8,6.2996]
[1746534750310,7.00151009,142.83,142.8,21.41977599]
[1746534750519,7.00151009,142.83,142.81,15.12017599]
[1746534751224,7.00151009,142.83,142.8,6.2996]
[1746534751513,7.00151009,142.83,142.81,15.12017599]
[1746534752922,74.50151009,142.83,142.81,15.12017599]
[1746534753219,67.5,142.83,142.81,15.12017599]
[1746534753824,67.5,142.83,142.82,15.12017599]
[1746534758523,67.5,142.83,142.82,22.12199646]
[1746534759027,74.49987272,142.86,142.82,22.12199646]
[1746534759229,74.49987272,142.86,142.84,15.12017599]
[1746534760806,74.49987272,142.86,142.83,15.12017599]
[1746534761433,15.12017599,142.85,142.82,15.12017599]
[1746534761640,89.62004871,142.86,142.82,15.12017599]
[1746534761925,89.62004871,142.86,142.8,13.30218254]
[1746534762118,67.5,142.85,142.83,15.12017599]
[1746534762815,67.5,142.85,142.84,15.12017599]
[1746534763634,67.5,142.85,142.81,7.00206826]
[1746534763812,67.5,142.85,142.84,15.12017599]
[1746534771245,74.49912684,142.88,142.84,15.12017599]
[1746534771412,67.5,142.87,142.85,15.12017599]
[1746534772441,74.49939,142.87,142.85,15.12017599]
[1746534773240,67.5,142.87,142.85,15.12017599]
[1746534773744,67.5,142.87,142.86,15.12017599]
[1746534775616,67.5,142.91,142.86,63.24021198]
[1746534775952,67.5,142.92,142.9,21.64597599]
[1746534776132,143.49553929,142.95,142.91,15.12017599]
[1746534776314,67.5,142.96,142.94,15.12017599]
[1746534776719,67.5,142.96,142.95,15.12017599]
[1746534777745,67.5,142.96,142.94,15.12017599]
[1746534777940,67.5,142.96,142.95,15.12017599]
[1746534779626,67.5,142.99,142.95,15.12017599]
[1746534779832,67.5,142.99,142.96,15.12017599]
[1746534780245,67.5,142.99,142.97,15.12017599]
[1746534780452,74.49360613,142.99,142.96,15.12017599]
[1746534780624,15.12017599,142.98,142.93,1.6301]
[1746534780825,82.62017599,142.97,142.93,15.12017599]
[1746534781441,67.5,142.96,142.94,15.12017599]
[1746534781750,67.5,142.96,142.95,15.12017599]
[1746534783563,67.5,142.96,142.95,22.11562894]
[1746534783767,67.5,142.99,142.95,22.11562894]
[1746534784056,67.5,142.99,142.97,15.12017599]
[1746534784848,74.49351881,142.99,142.97,15.12017599]
[1746534785047,67.5,142.99,142.97,15.12017599]
[1746534785759,67.5,142.99,142.98,15.12017599]
[1746534787331,67.5,143.02,142.98,22.11416116]
[1746534787544,67.5,143.01,142.98,22.11416116]
[1746534787738,67.5,143.01,143.0,15.12017599]
[1746534788955,67.5,143.03,143.0,15.12017599]
[1746534789258,67.5,143.03,143.01,15.12017599]
[1746534789452,20.97077397,143.05,143.02,15.12017599]
[1746534789845,6.99077397,143.05,143.02,15.12017599]
[1746534790039,22.11094996,143.05,143.01,15.12017599]
[1746534791635,15.12017599,143.04,143.0,15.12017599]
[1746534791854,15.12017599,143.04,142.99,6.99348879]
[1746534792068,15.12017599,143.02,142.98,15.12017599]
[1746534792368,67.5,143.01,142.99,15.12017599]
[1746534792742,67.5,143.01,143.0,15.12017599]
[1746534793869,143.490276,143.06,143.0,21.12207599]
[1746534793870,74.49057378,143.05,143.0,21.12207599]
[1746534794044,67.5,143.04,143.03,15.12017599]
[1746534794445,74.4902067,143.06,143.03,15.12017599]
[1746534794665,67.5,143.06,143.04,15.12017599]
[1746534795041,74.49007581,143.06,143.04,15.12017599]
[1746534795985,74.49007581,143.06,143.03,15.12017599]
[1746534796981,74.49007581,143.06,143.0,21.12207599]
[1746534796982,15.12017599,143.04,143.0,21.12207599]
[1746534797440,82.62017599,143.05,143.01,15.12017599]
[1746534798069,74.49086324,143.05,143.01,15.12017599]
[1746534798264,67.5,143.05,143.03,15.12017599]
[1746534798856,67.5,143.05,143.02,15.12017599]
[1746534799068,15.12017599,143.04,143.01,15.12017599]
[1746534799452,15.12017599,143.04,143.0,21.12207599]
[1746534799773,67.5,143.03,143.0,21.12207599]
[1746534800272,67.5,143.03,143.01,15.12017599]
[1746534800970,74.49154467,143.03,143.01,15.12017599]
[1746534802371,74.49154467,143.03,143.0,21.12207599]
[1746534802565,15.12017599,143.02,142.98,15.12017599]
[1746534803170,15.12017599,143.01,142.98,15.12017599]
[1746534803863,15.12017599,143.01,142.97,1.622]
[1746534804264,15.12017599,143.01,142.96,19.9792]
[1746534804467,6.99300699,143.0,142.97,15.12017599]
[1746534804667,22.11318298,143.0,142.96,35.09937599]
[1746534804874,89.61318298,143.0,142.96,21.13937599]
[1746534806583,74.49300699,143.0,142.97,15.12017599]
[1746534807780,67.5,143.0,142.98,15.12017599]
[1746534808081,74.49172338,143.03,142.99,15.12017599]
[1746534808385,74.49172338,143.03,143.01,15.12017599]
[1746534808585,67.5,143.02,143.01,15.12017599]
[1746534809180,74.49076991,143.05,143.01,15.12017599]
[1746534809377,74.49076991,143.05,143.02,15.12017599]
[1746534811875,67.5,143.05,143.02,15.12017599]
[1746534812183,74.49066907,143.05,143.03,15.12017599]
[1746534812593,67.5,143.05,143.03,15.12017599]
[1746534812796,67.5,143.05,143.04,15.12017599]
[1746534818921,74.48961523,143.07,143.04,15.12017599]
[1746534819100,74.48961523,143.07,143.05,15.12017599]
[1746534820918,89.60979122,143.07,143.04,15.12017599]
[1746534821515,74.48961523,143.07,143.05,15.12017599]
[1746534821698,67.5,143.07,143.05,15.12017599]
[1746534822295,74.48966876,143.07,143.05,15.12017599]
[1746534822695,67.5,143.07,143.06,15.12017599]
[1746534823203,67.5,143.07,143.04,6.99093666]
[1746534823498,67.5,143.07,143.06,15.12017599]
[1746534829300,67.5,143.07,143.06,22.11025008]
[1746534829691,67.5,143.12,143.07,6.6586]
[1746534829888,67.5,143.12,143.11,15.12017599]
[1746534831221,74.48533944,143.16,143.11,15.12017599]
[1746534831517,67.5,143.15,143.1,27.6298]
[1746534831717,67.5,143.17,143.14,15.12017599]
[1746534831927,67.5,143.17,143.16,15.12017599]
[1746534832132,67.5,143.17,143.12,6.98682387]
[1746534832296,74.48488584,143.17,143.15,15.12017599]
[1746534832616,82.62017599,143.16,143.11,6.1583]
[1746534832819,82.62017599,143.15,143.11,15.12017599]
[1746534832993,15.12017599,143.13,143.09,15.12017599]
[1746534834511,6.98714365,143.12,143.09,15.12017599]
[1746534834721,6.98714365,143.12,143.08,6.5213]
[1746534834897,6.98714365,143.12,143.09,15.12017599]
[1746534839047,6.98714365,143.12,143.08,6.5213]
[1746534839330,15.12017599,143.11,143.07,15.12017599]
[1746534840615,89.60829618,143.1,143.05,1.5267]
[1746534840818,82.62017599,143.09,143.05,16.64687599]
[1746534841012,82.62017599,143.09,143.05,15.12017599]
[1746534841608,67.5,143.09,143.06,15.12017599]
[1746534842015,67.5,143.09,143.07,15.12017599]
[1746534842218,67.5,143.09,143.08,15.12017599]
[1746534842417,74.48746906,143.12,143.08,15.12017599]
[1746534842619,74.48780323,143.11,143.09,15.12017599]
[1746534843643,74.48780323,143.11,143.04,49.90868519]
[1746534843942,82.62017599,143.1,143.06,15.12017599]
[1746534844137,82.62017599,143.1,143.04,49.90868519]
[1746534844341,82.62017599,143.1,143.06,15.12017599]
[1746534844541,67.5,143.1,143.07,15.12017599]
[1746534844720,74.48860856,143.09,143.07,15.12017599]
[1746534847835,74.48860856,143.09,143.04,56.89954194]
[1746534848143,74.48860856,143.09,143.06,15.12017599]
[1746534848953,107.08030597,143.09,143.04,6.4094]
[1746534849154,15.12017599,143.08,143.04,21.52957599]
[1746534849322,107.08030597,143.09,143.05,15.12017599]
[1746534850242,74.48860856,143.09,143.06,15.12017599]
[1746534851438,89.60878455,143.09,143.05,15.12017599]
[1746534851840,15.12017599,143.07,143.03,15.12017599]
[1746534852544,15.12017599,143.05,143.02,26.0]
[1746534852753,15.12017599,143.05,143.0,20.375]
[1746534852754,67.5,143.04,143.0,20.375]
[1746534852956,67.5,143.04,142.98,1.5779]
[1746534852957,15.12017599,143.02,142.98,20.20073801]
[1746534853254,15.12017599,143.02,142.98,16.69807599]
[1746534853462,6.99202908,143.02,142.99,15.12017599]
[1746534853747,22.11220507,143.02,142.98,16.69807599]
[1746534854445,67.5,143.01,142.98,1.5779]
[1746534854648,67.5,143.01,142.97,15.12017599]
[1746534854953,15.12017599,143.0,142.96,20.5114]
[1746534855251,15.12017599,143.0,142.96,35.63157599]
[1746534855450,6.99349604,142.99,142.96,21.71157599]
[1746534855639,74.49349604,142.99,142.97,15.12017599]
[1746534857738,74.49349604,142.99,142.96,21.71157599]
[1746534857942,89.61367203,142.99,142.96,6.5914]
[1746534858149,89.61367203,142.99,142.96,21.71157599]
[1746534858536,74.49349604,142.99,142.96,21.71157599]
[1746534859459,74.49349604,142.99,142.97,15.12017599]
[1746534859637,67.5,142.99,142.97,15.12017599]
[1746534859834,67.5,142.99,142.98,15.12017599]
[1746534860835,67.5,143.02,142.98,15.12017599]
[1746534861159,67.5,143.02,143.01,15.12017599]
[1746534861860,74.4906363,143.05,143.01,15.12017599]
[1746534862155,74.4906363,143.05,143.03,15.12017599]
[1746534862355,67.5,143.05,143.04,15.12017599]
[1746534862955,6.98972335,143.07,143.04,15.12017599]
[1746534863166,6.98972335,143.07,143.06,15.12017599]
[1746534863470,67.5,143.08,143.06,15.12017599]
[1746534863762,67.5,143.08,143.07,24.13172281]
[1746534864059,74.489097,143.08,143.07,24.13172281]
[1746534864758,74.489097,143.08,143.04,1.5403]
[1746534864962,74.489097,143.08,143.06,24.13172281]
[1746534865444,74.489097,143.08,143.07,24.13172281]
[1746534865759,67.5,143.08,143.06,24.13172281]
[1746534865935,74.48917989,143.08,143.06,24.13172281]
[1746534867235,74.48917989,143.08,143.05,24.13172281]
[1746534867436,74.48917989,143.08,143.06,24.13172281]
[1746534867957,74.48917989,143.08,143.07,24.13172281]
[1746534869660,74.48917989,143.08,143.06,24.13172281]
[1746534869964,67.5,143.08,143.06,24.13172281]
[1746534870462,74.48917866,143.08,143.06,24.13172281]
[1746534871864,67.5,143.08,143.06,24.13172281]
[1746534872065,74.48920114,143.08,143.06,24.13172281]
[1746534872666,67.5,143.08,143.07,24.13172281]
[1746534875175,74.48921506,143.08,143.06,26.0]
[1746534875361,74.48921506,143.08,143.06,24.13172281]
[1746534875567,74.48921506,143.08,143.04,1.5403]
[1746534875866,67.5,143.07,143.04,24.13172281]
[1746534876076,74.49007409,143.06,143.02,46.3426]
[1746534876276,91.63172281,143.05,143.02,6.4226]
[1746534876457,67.5,143.05,143.02,30.55432281]
[1746534876847,67.5,143.04,143.02,24.13172281]
[1746534877049,67.5,143.04,143.01,1.5085]
[1746534877244,67.5,143.04,143.02,24.13172281]
[1746534878183,74.49127863,143.04,143.02,24.13172281]
[1746534878361,74.49127863,143.04,143.01,25.64022281]
[1746534879057,74.49127863,143.04,142.99,24.13172281]
[1746534879058,91.63172281,143.03,142.99,24.13172281]
[1746534879265,24.13172281,143.0,142.97,1.5702]
[1746534879565,91.63172281,142.99,142.95,27.57148801]
[1746534879758,67.5,142.99,142.96,24.13172281]
[1746534880579,74.49390373,142.99,142.96,24.13172281]
[1746534881182,74.49390373,142.99,142.94,46.1959]
[1746534881353,74.49390373,142.99,142.96,24.13172281]
[1746534882272,74.49390373,142.99,142.97,24.13172281]
[1746534883344,67.5,142.99,142.97,24.13172281]
[1746534883547,67.5,142.99,142.98,24.13172281]
[1746534884476,67.5,142.99,142.97,24.13172281]
[1746534884773,67.5,142.99,142.98,24.13172281]
[1746534886657,67.5,142.99,142.96,26.0]
[1746534886860,67.5,142.99,142.98,24.13172281]
[1746534890865,74.49359327,142.99,142.96,26.0]
[1746534891052,74.49359327,142.99,142.98,24.13172281]
[1746534891366,74.49349604,142.99,142.98,24.13172281]
[1746534891571,74.49349604,142.99,142.94,23.74225241]
[1746534891757,74.49349604,142.99,142.97,24.13172281]
[1746534892161,74.49349604,142.99,142.96,24.13172281]
[1746534892667,74.49349604,142.99,142.97,24.13172281]
[1746534894379,74.49349604,142.99,142.98,24.13172281]
[1746534894380,67.5,142.99,142.98,24.13172281]
[1746534896974,74.49254823,143.01,142.98,24.13172281]
[1746534897174,74.49254823,143.01,143.0,24.13172281]
[1746534898996,74.49254823,143.01,142.99,24.13172281]
[1746534901382,67.5,143.01,142.99,24.13172281]
[1746534901679,74.49263804,143.01,142.99,24.13172281]
[1746534901860,89.59241323,143.01,142.97,15.09977519]
[1746534902189,82.59977519,143.0,142.94,49.74225241]
[1746534902360,82.59977519,143.0,142.96,15.09977519]
[1746534902686,67.5,143.0,142.97,15.09977519]
[1746534902865,67.5,142.99,142.94,71.83779402]
[1746534903068,74.49263804,143.01,142.98,15.09977519]
[1746534903265,67.5,143.01,143.0,15.09977519]
[1746534903867,67.5,143.01,143.0,24.15006229]
[1746534906196,67.5,143.01,142.96,8.63793039]
[1746534906385,67.5,143.01,142.98,24.15006229]
[1746534906861,67.5,143.01,142.99,24.15006229]
[1746534907595,74.492518,143.01,142.99,24.15006229]
[1746534907764,67.5,143.0,142.97,24.15006229]
[1746534907959,67.5,143.0,142.94,56.73809064]
[1746534907960,91.65006229,143.0,142.94,49.74225241]
[1746534908196,67.5,142.99,142.96,24.15006229]
[1746534909090,67.5,142.99,142.98,24.15006229]
[1746534909303,67.5,142.99,142.94,80.88820636]
[1746534909586,67.5,142.99,142.98,24.15006229]
[1746534917077,67.5,142.99,142.94,49.74225241]
[1746534917078,74.49352749,142.99,142.94,49.74225241]
[1746534917600,67.5,142.99,142.97,24.15006229]
[1746534918303,74.49355827,142.99,142.97,24.15006229]
[1746534918493,74.49355827,142.99,142.96,24.15006229]
[1746534920402,74.49355827,142.99,142.97,24.15006229]
[1746534920881,67.5,142.98,142.97,24.15006229]
[1746534923505,67.5,142.98,142.97,31.14453665]
[1746534923809,67.5,143.02,142.98,1.5482]
[1746534923982,67.5,143.02,143.01,24.15006229]
[1746534926405,74.49202908,143.02,142.99,24.15006229]
[1746534926907,6.99007409,143.06,143.01,50.15006229]
[1746534927091,67.5,143.06,143.05,24.15006229]
[1746534928311,74.49007409,143.06,143.05,24.15006229]
[1746534928501,74.49007409,143.06,143.0,6.5268]
[1746534928687,67.5,143.05,143.02,24.15006229]
[1746534929187,67.5,143.04,143.01,24.15006229]
[1746534929395,91.65006229,143.04,143.0,30.67686229]
[1746534929612,91.65006229,143.04,142.99,41.5201]
[1746534929613,91.65006229,143.03,142.97,6.99424863]
[1746534929782,24.15006229,143.02,142.96,21.6942]
[1746534929986,91.65006229,143.01,142.96,21.6942]
[1746534930295,6.99300699,143.0,142.97,24.15006229]
[1746534930480,67.5,142.99,142.97,24.15006229]
[1746534933520,67.5,142.99,142.98,24.15006229]
[1746534933813,67.5,143.04,142.98,24.15006229]
[1746534934124,67.5,143.03,143.0,26.0]
[1746534934615,74.49157025,143.03,142.99,26.0]
[1746534934786,67.5,143.03,142.99,26.0]
[1746534935405,67.5,143.03,143.01,24.15006229]
[1746534935607,74.49158814,143.03,142.99,26.0]
[1746534935812,74.49158814,143.03,143.01,24.15006229]
[1746534936104,98.64165043,143.03,142.97,32.99447436]
[1746534936314,67.5,143.02,142.99,24.15006229]
[1746534936529,67.5,143.02,143.0,24.15006229]
[1746534936715,67.5,143.01,143.0,24.15006229]
[1746534937814,67.5,143.01,142.99,24.15006229]
[1746534938025,67.5,143.0,142.97,26.0]
[1746534938200,67.5,142.99,142.97,50.15006229]
[1746534938620,67.5,142.99,142.98,24.15006229]
[1746534940595,67.5,143.03,142.98,74.62901039]
[1746534940800,67.5,143.03,143.02,24.15006229]
[1746534943325,67.5,143.03,143.02,31.14209137]
[1746534944829,67.5,143.06,143.02,31.14209137]
[1746534945030,67.5,143.05,143.04,24.15006229]
[1746534945632,67.5,143.05,143.03,24.15006229]
[1746534946507,91.65006229,143.05,142.98,26.0]
[1746534946715,67.5,143.04,143.01,24.15006229]
[1746534947011,74.49105704,143.04,143.01,24.15006229]
[1746534949230,67.5,143.04,143.03,24.15006229]
[1746534955324,67.5,143.04,143.01,27.07499593]
[1746534955534,67.5,143.04,143.03,24.15006229]
[1746534958339,67.5,143.04,143.02,24.15006229]
[1746534958638,74.49111084,143.04,143.01,24.15006229]
[1746534959538,67.5,143.04,143.01,31.14254822]
[1746534959726,67.5,143.04,143.02,24.15006229]
[1746534961114,67.5,143.04,143.03,24.15006229]
[1746534961413,67.5,143.08,143.03,44.23026229]
[1746534961614,67.5,143.08,143.07,24.15006229]
[1746534961915,67.5,143.11,143.07,24.15006229]
[1746534962222,67.5,143.1,143.07,24.15006229]
[1746534962530,67.5,143.1,143.08,24.15006229]
[1746534963352,24.15006229,143.09,143.04,1.5679]
[1746534963663,24.15006229,143.07,143.02,6.99181859]
[1746534963837,24.15006229,143.07,143.03,24.15006229]
[1746534964031,67.5,143.06,143.03,24.15006229]
[1746534964337,91.65006229,143.06,143.01,1.6409]
[1746534964520,91.65006229,143.06,143.02,24.15006229]
[1746534964721,98.64042423,143.06,143.02,24.15006229]
[1746534965356,67.5,143.06,143.03,24.15006229]
[1746534965532,67.5,143.06,143.05,24.15006229]
[1746534965732,67.5,143.09,143.05,24.15006229]
[1746534965955,67.5,143.09,143.07,24.15006229]
[1746534967160,67.5,143.09,143.08,24.15006229]
[1746534968360,137.8223,143.13,143.08,24.15006229]
[1746534968361,67.5,143.13,143.08,24.15006229]
[1746534968546,98.63708784,143.13,143.1,24.15006229]
[1746534968728,74.48702555,143.13,143.1,24.15006229]
[1746534969657,74.48702555,143.13,143.11,24.15006229]
[1746534969836,67.5,143.16,143.12,24.15006229]
[1746534970039,67.5,143.16,143.14,24.15006229]
[1746534970239,74.48533664,143.16,143.14,24.15006229]